bitfinex-derivatives/quotes_ETHF0:USTF0_20250316
["timestamp","ask_amount","ask_price","bid_price","bid_amount"]
[1742148810289,0.84879918,1902.7,1902.6,4.04873]
[1742148810481,0.84879918,1902.7,1902.6,3.2078]
[1742148810682,2.19299918,1902.7,1902.6,4.6579]
[1742148811284,0.00787918,1902.7,1902.6,5.49883]
[1742148812192,0.84876918,1902.7,1902.6,5.49883]
[1742148813395,0.00787918,1902.7,1902.6,5.49883]
[1742148813590,0.84876918,1902.7,1902.6,5.49883]
[1742148814593,0.84876918,1902.7,1902.6,3.2078]
[1742148814792,0.84098,1902.5,1902.4,4.6303]
[1742148815092,0.84102,1902.4,1902.3,3.584]
[1742148815400,2.17952,1902.4,1902.3,3.584]
[1742148815694,2.17952,1902.4,1902.3,4.42507]
[1742148815893,1.4281,1902.6,1902.4,0.84102]
[1742148815894,0.84099,1902.5,1902.4,0.84102]
[1742148816083,2.30109,1902.5,1902.4,5.39532]
[1742148816288,1.4601,1902.5,1902.4,5.39532]
[1742148816504,2.30108,1902.5,1902.4,5.39532]
[1742148816685,2.30108,1902.5,1902.4,4.5543]
[1742148816891,1.4601,1902.5,1902.4,5.39532]
[1742148818094,1.4281,1902.6,1902.5,0.84098]
[1742148818301,2.30888918,1902.7,1902.6,0.84093]
[1742148818492,2.30888918,1902.7,1902.6,4.04873]
[1742148818795,2.30888918,1902.7,1902.6,7.63273]
[1742148818997,2.30888918,1902.7,1902.6,9.01673]
[1742148820095,2.30888918,1902.7,1902.6,8.1758]
[1742148820300,2.30888918,1902.7,1902.6,9.01673]
[1742148821098,2.30888918,1902.7,1902.6,8.1758]
[1742148821593,2.30888918,1902.7,1902.6,9.01673]
[1742148823302,2.30888918,1902.7,1902.6,8.1758]
[1742148823500,2.30888918,1902.7,1902.6,9.01673]
[1742148824395,1.46797918,1902.7,1902.6,9.01673]
[1742148824796,2.30886918,1902.7,1902.6,9.01673]
[1742148824991,7.764549,1921.9,1902.9,0.84079]
[1742148824992,2.8374338,1903.3,1902.9,0.84079]
[1742148825195,2.8374338,1903.3,1902.9,3.584]
[1742148825196,2.20836,1903.0,1902.9,3.584]
[1742148826195,0.84089,1902.7,1902.6,3.2078]
[1742148826395,0.84089,1902.7,1902.6,6.7918]
[1742148827203,2.20849,1902.7,1902.6,6.7918]
[1742148828304,1.3676,1902.7,1902.6,7.63273]
[1742148829606,2.20849,1902.7,1902.6,7.63273]
[1742148831512,1.392,1902.8,1902.6,6.7918]
[1742148831803,2.23287,1902.8,1902.7,0.84089]
[1742148832200,0.84089,1902.7,1902.6,7.6327]
[1742148833105,1.4514,1902.7,1902.6,7.6327]
[1742148833604,2.29229,1902.7,1902.6,7.6327]
[1742148834304,1.4514,1902.7,1902.6,7.6327]
[1742148834702,1.392,1902.8,1902.7,0.84089]
[1742148835104,1.392,1902.8,1902.6,7.6327]
[1742148835303,1.392,1902.8,1902.7,0.84089]
[1742148835505,1.392,1902.8,1902.6,7.63272]
[1742148835705,2.26759,1902.7,1902.6,3.2078]
[1742148835904,2.26759,1902.7,1902.4,3.2078]
[1742148835905,0.84098,1902.5,1902.4,3.2078]
[1742148836101,0.8411,1902.3,1902.2,3.584]
[1742148836407,1.4267,1902.6,1902.3,0.84106]
[1742148836597,0.84106,1902.4,1902.2,4.42508]
[1742148836799,1.4348,1902.3,1902.2,4.42508]
[1742148837407,0.84096,1902.6,1902.2,3.584]
[1742148837605,2.27576,1902.6,1902.4,4.04879]
[1742148837998,1.4348,1902.5,1902.4,4.04879]
[1742148838197,0.7358138,1902.7,1902.4,3.2078]
[1742148838410,0.84091,1902.7,1902.6,0.84093]
[1742148838711,0.84093,1902.6,1902.5,4.2795]
[1742148839409,1.4348,1902.7,1902.5,5.12046]
[1742148839606,1.4348,1902.7,1902.6,0.84093]
[1742148840306,2.27573,1902.7,1902.5,5.12045]
[1742148841114,2.27573,1902.7,1902.6,0.84093]
[1742148841304,0.84093,1902.6,1902.5,4.2795]
[1742148841508,0.84098,1902.5,1902.4,4.04879]
[1742148841703,2.29025,1902.6,1902.5,0.84098]
[1742148842310,0.84093,1902.7,1902.6,0.84093]
[1742148842507,0.84093,1902.7,1902.6,4.04873]
[1742148842916,2.1413,1902.8,1902.7,0.84089]
[1742148843116,0.84083,1902.9,1902.7,4.42489]
[1742148843414,2.20413,1902.9,1902.7,5.09719]
[1742148843615,2.2041,1902.9,1902.8,1.3753]
[1742148843819,0.8408,1902.9,1902.8,1.3753]
[1742148844002,0.84084,1902.8,1902.7,3.584]
[1742148844317,0.84084,1902.8,1902.7,4.9593]
[1742148845008,0.84084,1902.8,1902.7,3.584]
[1742148845312,0.84089,1902.7,1902.6,3.2078]
[1742148845511,0.84089,1902.7,1902.6,4.5831]
[1742148846123,0.84089,1902.7,1902.6,3.2078]
[1742148846315,0.84102,1902.4,1902.3,4.5648]
[1742148846616,1.55987,1902.6,1902.5,0.84098]
[1742148847615,0.7189,1902.6,1902.5,5.40578]
[1742148847812,0.84087,1902.8,1902.7,0.84088]
[1742148848012,0.84087,1902.8,1902.7,4.04868]
[1742148848418,1.55394,1902.9,1902.8,0.84084]
[1742148848714,2.10969917,1903.1,1902.8,0.84084]
[1742148848715,0.84861917,1903.1,1902.8,1.357]
[1742148848914,0.84076,1903.0,1902.9,8.32977]
[1742148849110,0.84076,1903.0,1902.9,9.68027]
[1742148850008,0.00787917,1903.1,1903.0,0.84076]
[1742148850209,0.00787917,1903.1,1903.0,2.19126]
[1742148855323,0.84858917,1903.1,1903.0,1.3505]
[1742148855618,0.84858917,1903.1,1903.0,4.9335]
[1742148856522,0.84858917,1903.1,1903.0,1.3505]
[1742148856709,0.84858917,1903.1,1902.9,3.2078]
[1742148856710,0.84076,1903.0,1902.9,3.2078]
[1742148857016,0.8408,1902.9,1902.8,2.18554]
[1742148857323,1.56017,1903.0,1902.9,1.3447]
[1742148858626,0.84084,1902.8,1902.7,5.77786]
[1742148858816,0.84084,1902.8,1902.7,9.36086]
[1742148859525,0.84083,1902.9,1902.8,0.84084]
[1742148859714,0.84083,1902.9,1902.7,8.52]
[1742148859917,0.84084,1902.8,1902.7,9.36086]
[1742148860325,0.84083,1902.9,1902.7,8.52]
[1742148860525,0.84083,1902.9,1902.7,9.36084]
[1742148860822,0.84083,1902.9,1902.8,0.84084]
[1742148861017,0.84083,1902.9,1902.8,2.30774]
[1742148861217,0.84077,1903.0,1902.9,0.8408]
[1742148861418,0.84077,1903.0,1902.9,5.5155]
[1742148862226,1.53760917,1903.1,1903.0,0.84076]
[1742148862429,1.53760917,1903.1,1903.0,5.89066]
[1742148863725,2.98180917,1903.1,1903.0,5.89066]
[1742148864625,2.98180917,1903.1,1903.0,5.0499]
[1742148864827,2.98180917,1903.1,1903.0,5.89066]
[1742148865028,2.98180917,1903.1,1903.0,5.0499]
[1742148865421,0.7358138,1903.7,1903.0,7.15172]
[1742148865727,1.4293,1903.5,1903.4,0.84058]
[1742148866031,2.26984,1903.5,1903.4,1.4068]
[1742148868230,0.84054,1903.5,1903.4,2.24738]
[1742148868528,2.24483,1903.6,1903.5,0.84054]
[1742148868730,3.61863,1903.6,1903.5,0.84054]
[1742148869125,3.61863,1903.6,1903.5,2.23464]
[1742148870136,3.61863,1903.6,1903.5,1.3941]
[1742148870731,3.61863,1903.6,1903.5,2.23464]
[1742148871131,3.61863,1903.6,1903.5,1.3941]
[1742148871433,3.61863,1903.6,1903.5,2.23464]
[1742148871635,3.61863,1903.6,1903.5,1.3941]
[1742148872227,0.84058,1903.4,1903.3,3.21567918]
[1742148872529,0.84058,1903.4,1903.3,6.79767918]
[1742148872726,0.84058,1903.4,1903.3,3.21567918]
[1742148872933,0.84084,1902.8,1902.7,1.0]
[1742148873827,0.84084,1902.8,1902.7,2.3588]
[1742148876232,1.57184,1902.8,1902.7,2.3588]
[1742148876630,2.97994,1902.8,1902.7,2.3588]
[1742148876830,2.97994,1902.8,1902.7,3.19969]
[1742148877636,2.97994,1902.8,1902.7,2.3588]
[1742148879031,2.97994,1902.8,1902.7,5.5666]
[1742148879932,2.97994,1902.8,1902.7,1.0]
[1742148880141,0.84089,1902.7,1902.6,1e-08]
[1742148880327,2.19969,1902.7,1902.6,1e-08]
[1742148880533,5.40749,1902.7,1902.6,1e-08]
[1742148880840,2.19969,1902.7,1902.6,1e-08]
[1742148886442,2.19969,1902.7,1902.6,1.36910001]
[1742148889547,2.19969,1902.7,1902.6,1e-08]
[1742148889941,5.40749,1902.7,1902.6,1e-08]
[1742148893950,5.40749,1902.7,1902.6,1e-08]
[1742148900450,8.6433038,1902.7,1902.6,1e-08]
[1742148901358,9.75844349,1902.7,1902.6,1e-08]
[1742148901547,11.02373868,1902.7,1902.6,1e-08]
[1742148901857,7.40859899,1902.7,1902.6,1e-08]
[1742148903548,6.1433038,1902.7,1902.6,1e-08]
[1742148905250,7.26106965,1902.7,1902.6,1e-08]
[1742148905653,8.52840475,1902.7,1902.6,1e-08]
[1742148906455,11.02840475,1902.7,1902.6,1e-08]
[1742148909151,14.61040475,1902.7,1902.6,1e-08]
[1742148909355,0.84111,1902.2,1902.1,0.7108]
[1742148909656,0.84111,1902.2,1902.1,2.0905]
[1742148910156,2.28751,1902.2,1902.1,2.0905]
[1742148915968,0.84129,1901.8,1901.7,3.582]
[1742148916261,0.84133,1901.7,1901.6,0.7141]
[1742148916563,0.84142,1901.5,1901.4,3.582]
[1742148916961,0.84142,1901.5,1901.4,0.7141]
[1742148917459,0.84146,1901.4,1901.3,0.00787918]
[1742148917656,2.17416,1901.4,1901.3,0.00787918]
[1742148918568,0.84146,1901.4,1901.3,0.00787918]
[1742148918960,0.84146,1901.4,1901.3,0.72017918]
[1742148921164,0.84146,1901.4,1901.3,2.09297918]
[1742148922569,2.24946,1901.4,1901.3,2.09297918]
[1742148926685,0.84168,1900.9,1900.8,3.2078]
[1742148926863,0.84155,1901.2,1901.1,1.4018]
[1742148927174,2.28515,1901.2,1901.1,1.4018]
[1742148928373,2.28515,1901.2,1901.1,2.1181]
[1742148929971,0.8416,1901.1,1901.0,0.00787918]
[1742148930280,2.2327,1901.1,1901.0,0.00787918]
[1742148932979,2.2327,1901.1,1901.0,1.43287918]
[1742148937268,1.3911,1901.1,1900.6,4.04961]
[1742148937471,0.84177,1900.7,1900.6,7.63161]
[1742148937672,0.84177,1900.7,1900.6,3.2078]
[1742148937868,0.84177,1900.7,1900.6,6.7898]
[1742148938576,0.84177,1900.7,1900.6,8.1298]
[1742148939378,0.84177,1900.7,1900.6,8.97162]
[1742148939680,0.84177,1900.7,1900.6,8.1298]
[1742148939865,1.4088,1900.8,1900.6,8.1298]
[1742148939866,2.25056,1900.8,1900.6,8.1298]
[1742148940071,3.2078,1901.1,1900.7,1.4592]
[1742148940271,0.8417,1900.9,1900.8,1.5631]
[1742148940676,0.84165,1901.0,1900.9,0.84165]
[1742148940875,0.84165,1901.0,1900.9,2.99295]
[1742148941072,2.20103,1901.1,1901.0,0.84164]
[1742148941269,0.84163,1901.1,1901.0,5.50864]
[1742148941678,0.84158,1901.2,1901.1,0.84158]
[1742148941872,0.84158,1901.2,1901.1,3.02218]
[1742148942078,0.84158,1901.2,1901.1,2.1806]
[1742148942783,0.84158,1901.2,1901.1,3.0222]
[1742148943283,2.20094,1901.3,1901.2,0.84155]
[1742148943587,2.20094,1901.3,1901.2,2.23845]
[1742148943992,2.20094,1901.3,1901.2,1.3969]
[1742148944380,2.20094,1901.3,1901.2,5.44625]
[1742148944581,0.6991,1901.5,1901.2,9.02822]
[1742148944783,2.16746,1901.4,1901.3,2.23841]
[1742148946090,2.16746,1901.4,1901.3,1.3969]
[1742148947484,0.84151,1901.3,1901.2,6.7898]
[1742148948080,0.84151,1901.3,1901.2,8.181]
[1742148949689,0.84151,1901.3,1901.2,9.02255]
[1742148950384,0.84151,1901.3,1901.2,8.181]
[1742148950684,0.84151,1901.3,1901.2,9.02255]
[1742148951692,1.326,1901.4,1901.2,9.02252]
[1742148951892,2.16746,1901.4,1901.3,1.4461]
[1742148952082,2.16746,1901.4,1901.3,2.28761]
[1742148953797,2.16746,1901.4,1900.8,6.0]
[1742148953798,4.5618138,1901.4,1900.8,3.2078]
[1742148953982,4.5618138,1901.4,1900.5,0.00787918]
[1742148953983,0.84177,1900.7,1900.6,1.4395]
[1742148956389,0.84177,1900.7,1900.6,2.28132]
[1742148957292,0.84177,1900.7,1900.6,1.4395]
[1742148957789,0.84177,1900.7,1900.6,2.148]
[1742148957994,0.84177,1900.7,1900.6,2.98982]
[1742148958196,1.4217,1900.8,1900.6,2.148]
[1742148958493,0.84177,1900.7,1900.6,1.55028]
[1742148960296,0.84177,1900.7,1900.6,1.55029]
[1742148960790,1.4217,1900.8,1900.7,0.84177]
[1742148960994,2.26343,1900.8,1900.7,1.55357]
[1742148961394,1.4217,1900.8,1900.7,4.76137]
[1742148961596,0.84167,1901.0,1900.9,0.84168]
[1742148961890,2.29847,1901.0,1900.9,0.84168]
[1742148962096,1.4568,1901.0,1900.9,0.84168]
[1742148962394,1.4568,1901.0,1900.9,1.50358]
[1742148962595,2.29844,1901.0,1900.9,1.50358]
[1742148963391,1.4568,1901.0,1900.9,1.50358]
[1742148963687,2.29844,1901.0,1900.9,1.50358]
[1742148963887,2.29844,1901.0,1900.9,0.6619]
[1742148964200,2.29844,1901.0,1900.9,1.50358]
[1742148964391,1.3715,1901.2,1900.9,3.8697]
[1742148964586,2.7635,1901.2,1900.9,3.8697]
[1742148964899,3.60508,1901.2,1901.1,0.8416]
[1742148965096,2.21308,1901.2,1901.1,0.8416]
[1742148965297,0.8416,1901.1,1901.0,0.8416]
[1742148965691,1.54029,1901.2,1901.1,0.8416]
[1742148966397,0.84159,1901.2,1900.9,3.8697]
[1742148966609,0.84159,1901.2,1901.1,0.8416]
[1742148968595,0.84164,1901.0,1900.9,3.2078]
[1742148968892,0.84163,1901.1,1901.0,0.84163]
[1742148969084,2.81138,1901.3,1900.9,0.84165]
[1742148969288,5.31169,1901.2,1900.7,3.9196]
[1742148969492,2.10411,1901.0,1900.7,0.84176]
[1742148969696,0.84177,1900.7,1900.6,10.2545]
[1742148969892,0.84177,1900.7,1900.6,4.2545]
[1742148970095,0.84177,1900.7,1900.6,5.09628]
[1742148970296,1.57626,1900.8,1900.7,0.84177]
[1742148970901,1.55151,1900.9,1900.8,0.84173]
[1742148971793,0.728,1901.1,1901.0,0.84164]
[1742148971994,0.728,1901.1,1900.7,3.2078]
[1742148971995,0.84166,1901.0,1900.9,4.42266]
[1742148972201,0.84162,1901.1,1901.0,0.84164]
[1742148972495,0.84162,1901.1,1901.0,2.23434]
[1742148972900,1.55137,1901.2,1901.1,0.8416]
[1742148973101,0.7098,1901.2,1901.1,0.8416]
[1742148973402,0.84153,1901.3,1901.2,0.84153]
[1742148973604,0.84153,1901.3,1901.2,4.42253]
[1742148974106,0.84153,1901.3,1901.2,3.581]
[1742148974596,0.84151,1901.3,1901.2,4.42252]
[1742148974790,0.84151,1901.3,1901.2,3.581]
[1742148975602,0.8416,1901.1,1901.0,3.58]
[1742148975798,2.10394,1901.2,1900.8,0.84172]
[1742148975999,0.84172,1900.9,1900.8,5.81292]
[1742148976301,1.51177,1901.0,1900.9,0.84168]
[1742148976496,1.51177,1901.0,1900.9,2.28318]
[1742148977004,1.51177,1901.0,1900.9,1.4415]
[1742148977797,1.51177,1901.0,1900.9,2.28318]
[1742148978098,1.51177,1901.0,1900.9,1.4415]
[1742148979104,0.6701,1901.0,1900.9,2.28318]
[1742148979499,1.54662,1901.1,1901.0,0.84164]
[1742148979805,1.54662,1901.1,1901.0,2.23164]
[1742148979998,0.7037,1901.2,1901.1,0.8416]
[1742148980198,0.7037,1901.2,1901.1,2.2316]
[1742148980398,0.7037,1901.2,1901.1,6.5238]
[1742148981312,1.54525,1901.2,1901.1,6.5238]
[1742148981809,1.54525,1901.2,1901.1,5.6822]
[1742148982106,1.54525,1901.2,1901.1,4.97]
[1742148983402,1.54525,1901.2,1901.1,3.58]
[1742148983994,1.54525,1901.2,1901.1,4.4216]
[1742148985107,1.54525,1901.2,1901.1,3.58]
[1742148985706,1.54525,1901.2,1901.1,4.981]
[1742148985907,0.7037,1901.2,1901.1,5.8226]
[1742148986401,1.54525,1901.2,1901.1,4.981]
[1742148987002,1.54525,1901.2,1901.1,5.8226]
[1742148988305,0.7037,1901.2,1901.1,5.8226]
[1742148988608,1.4415,1901.3,1901.2,0.84155]
[1742148988809,1.4415,1901.3,1901.2,2.23855]
[1742148989408,3.2078,1901.5,1901.4,0.84146]
[1742148989609,0.84144,1901.5,1901.4,3.579]
[1742148989806,2.96474,1901.5,1901.4,4.42046]
[1742148990008,2.96474,1901.5,1901.4,5.81746]
[1742148990210,2.96472,1901.5,1901.4,5.81746]
[1742148990412,2.1233,1901.5,1901.4,5.81746]
[1742148990707,2.96472,1901.5,1901.4,3.579]
[1742148990914,2.1233,1901.5,1901.4,4.42046]
[1742148991212,1.4308,1901.5,1901.4,5.81746]
[1742148991409,0.00787918,1901.6,1901.5,0.84142]
[1742148991602,1.43867918,1901.6,1901.5,2.92162]
[1742148992411,0.00787918,1901.6,1901.5,6.12942]
[1742148995613,1e-08,1901.6,1901.5,8.62942]
[1742148995806,2.2615,1902.0,1901.9,0.84124]
[1742148996006,2.26152,1902.0,1901.9,3.579]
[1742148996717,1.4203,1902.0,1901.9,4.42024]
[1742148997015,2.8034,1902.0,1901.9,5.80194]
[1742148997215,3.6446,1902.0,1901.9,6.51884]
[1742148998416,3.6446,1902.0,1901.9,4.9607]
[1742148999306,3.6446,1902.0,1901.9,3.579]
[1742149001216,0.84124,1901.9,1901.8,3.58587918]
[1742149001416,2.21044,1901.9,1901.8,3.58587918]
[1742149003009,2.21044,1901.9,1901.8,4.91997918]
[1742149004017,2.21044,1901.9,1901.8,5.76126918]
[1742149004712,2.21044,1901.9,1901.8,8.96906918]
[1742149005216,1.3692,1901.9,1901.8,5.76126918]
[1742149005608,1.3692,1901.9,1901.8,8.96906918]
[1742149007803,2.21044,1901.9,1901.8,8.96906918]
[1742149008005,1.3692,1901.9,1901.8,8.96906918]
[1742149010219,0.84906918,1902.1,1902.0,0.8412]
[1742149010220,0.00787918,1902.1,1902.0,0.8412]
[1742149010418,1.37097918,1902.1,1902.0,0.8412]
[1742149010718,1.37097918,1902.1,1902.0,2.2564]
[1742149010914,2.21212918,1902.1,1902.0,1.4152]
[1742149011115,2.21212918,1902.1,1902.0,2.2564]
[1742149011320,2.21212918,1902.1,1902.0,1.4152]
[1742149012625,2.21212918,1902.1,1902.0,2.2564]
[1742149012820,2.21212918,1902.1,1902.0,1.4152]
[1742149013021,2.21212918,1902.1,1902.0,2.2564]
[1742149013622,1.37097918,1902.1,1902.0,2.2564]
[1742149014519,2.21212918,1902.1,1902.0,2.2564]
[1742149014720,2.21212918,1902.1,1902.0,5.4642]
[1742149015317,2.21212918,1902.1,1902.0,2.2564]
[1742149017525,1.37097918,1902.1,1902.0,2.2564]
[1742149018126,2.21212918,1902.1,1902.0,2.2564]
[1742149018621,2.21212918,1902.1,1902.0,1.4152]
[1742149019827,2.21212918,1902.1,1902.0,2.2564]
[1742149020123,1.37097918,1902.1,1902.0,2.2564]
[1742149020329,2.21212918,1902.1,1902.0,1.4152]
[1742149021029,2.21212918,1902.1,1902.0,2.2564]
[1742149021229,2.21212918,1902.1,1902.0,1.4152]
[1742149021415,0.84124,1901.9,1901.8,3.21567918]
[1742149021724,0.84124,1901.9,1901.8,0.00787918]
[1742149022326,1.56194,1901.9,1901.8,0.00787918]
[1742149023118,1.56194,1901.9,1901.8,1.47047918]
[1742149023626,1.56194,1901.9,1901.8,2.31176918]
[1742149024225,1.56194,1901.9,1901.8,1.47047918]
[1742149024528,1.56194,1901.9,1901.8,0.00787918]
[1742149024922,1.56194,1901.9,1901.8,0.84916918]
[1742149025124,1.56194,1901.9,1901.8,2.17646918]
[1742149025422,1.56194,1901.9,1901.8,1.33517918]
[1742149028629,1.56194,1901.9,1901.8,0.00787918]
[1742149031120,0.84146,1901.4,1901.3,6.84147]
[1742149031325,0.84146,1901.4,1901.3,4.41647]
[1742149031526,0.84146,1901.4,1901.3,5.78497]
[1742149031924,1.50926,1901.4,1901.3,4.9435]
[1742149032126,0.84155,1901.2,1901.1,1.51639]
[1742149032330,0.84155,1901.2,1901.1,5.09139]
[1742149032535,2.24784,1901.3,1901.2,0.84155]
[1742149032729,2.24784,1901.3,1901.2,2.21005]
[1742149033138,2.24784,1901.3,1901.2,1.3685]
[1742149033328,0.84155,1901.2,1901.1,4.41658]
[1742149033636,2.24785,1901.2,1901.1,5.78508]
[1742149033835,0.8416,1901.1,1901.0,3.21567918]
[1742149034033,2.2479,1901.1,1901.0,3.58287918]
[1742149034234,2.9752,1901.1,1901.0,3.58287918]
[1742149034434,2.9752,1901.1,1901.0,0.00787918]
[1742149035142,0.6678,1901.4,1901.0,4.62677918]
[1742149035337,1.3855,1901.3,1901.2,0.84155]
[1742149035539,1.3855,1901.3,1901.2,4.41655]
[1742149035834,2.22701,1901.3,1901.2,3.575]
[1742149036335,1.3855,1901.3,1901.2,4.41655]
[1742149036537,2.22701,1901.3,1901.2,7.62435]
[1742149036736,1.3855,1901.3,1901.2,4.41655]
[1742149037135,2.22701,1901.3,1901.2,4.41655]
[1742149037641,1.3855,1901.3,1901.2,4.41655]
[1742149039142,2.22701,1901.3,1901.2,3.575]
[1742149039341,2.96041,1901.3,1901.2,3.575]
[1742149039540,0.84155,1901.2,1901.1,4.04939]
[1742149039739,2.21115,1901.2,1901.1,7.62439]
[1742149040042,1.3696,1901.2,1901.1,7.62439]
[1742149040546,2.21115,1901.2,1901.1,7.62439]
[1742149040737,1.3696,1901.2,1901.1,7.62439]
[1742149041444,2.21115,1901.2,1901.1,7.62439]
[1742149041650,1.3696,1901.2,1901.1,7.62439]
[1742149042045,2.21115,1901.2,1901.1,7.62439]
[1742149042542,2.21115,1901.2,1901.1,4.41659]
[1742149043346,1.3696,1901.2,1901.1,4.41659]
[1742149043843,1.50927,1901.4,1901.3,0.84151]
[1742149044741,1.50927,1901.4,1901.2,0.84152]
[1742149044940,0.84151,1901.3,1901.2,0.84152]
[1742149045139,2.24521,1901.3,1901.2,0.84152]
[1742149045348,1.4037,1901.3,1901.1,6.7828]
[1742149045545,1.4037,1901.2,1901.1,6.7828]
[1742149045748,1.4037,1901.2,1901.1,7.62437]
[1742149046248,2.24525,1901.2,1901.1,7.62437]
[1742149046548,0.8416,1901.1,1901.0,4.42451918]
[1742149046754,2.1757,1901.1,1901.0,3.58287918]
[1742149047342,2.1757,1901.1,1901.0,0.00787918]
[1742149048845,1.3341,1901.1,1901.0,0.84951918]
[1742149049947,0.6678,1901.4,1901.2,0.84155]
[1742149050243,1.3835,1901.3,1901.2,4.41655]
[1742149050454,1.53072,1901.5,1901.4,0.84146]
[1742149050749,0.84146,1901.4,1901.3,0.84148]
[1742149051450,2.22496,1901.4,1901.3,0.84148]
[1742149051954,1.3835,1901.4,1901.3,0.84148]
[1742149052246,2.22496,1901.4,1901.3,4.04928]
[1742149052445,1.3835,1901.4,1901.3,4.04928]
[1742149053152,2.22496,1901.4,1901.3,4.04928]
[1742149053552,2.22496,1901.4,1901.3,5.50878]
[1742149053756,1.3835,1901.4,1901.3,5.50878]
[1742149055151,1.4454138,1901.8,1901.6,0.84137]
[1742149055351,1.4244,1901.7,1901.6,0.84137]
[1742149055845,0.84123,1902.0,1901.8,0.84126]
[1742149056045,0.84124,1901.9,1901.8,0.84126]
[1742149056240,2.22883,1902.0,1901.8,4.41526]
[1742149057255,1.4548,1901.9,1901.8,4.41526]
[1742149058454,2.29604,1901.9,1901.8,3.574]
[1742149058757,1.4548,1901.9,1901.8,4.41529]
[1742149059662,0.74369298,1902.1,1902.0,0.8412]
[1742149059960,1.38827918,1902.1,1902.0,0.8412]
[1742149060257,1.38827918,1902.1,1902.0,4.049]
[1742149060458,1.38827918,1902.1,1902.0,4.7732]
[1742149062159,1.38827918,1902.1,1902.0,1.5654]
[1742149066359,1.38827918,1902.1,1902.0,4.7732]
[1742149071675,1.38827918,1902.1,1902.0,7.62]
[1742149072066,2.22942918,1902.1,1902.0,3.2078]
[1742149072265,0.84128,1901.9,1901.8,0.84129]
[1742149072461,0.84128,1901.9,1901.8,4.41229]
[1742149072969,2.92008,1901.9,1901.8,3.571]
[1742149073169,2.92008,1901.9,1901.8,4.41229]
[1742149074069,2.0788,1901.9,1901.8,4.41229]
[1742149074262,2.92004,1901.9,1901.8,4.41229]
[1742149074769,2.0788,1901.9,1901.8,4.41229]
[1742149074964,1.362,1901.9,1901.8,7.62009]
[1742149075361,0.00787918,1902.1,1901.8,7.62009]
[1742149075567,0.00787918,1902.1,1902.0,0.8412]
[1742149076069,0.00787918,1902.1,1902.0,2.168]
[1742149076475,2.17742918,1902.1,1902.0,2.168]
[1742149076974,1.33627918,1902.1,1902.0,2.168]
[1742149077674,2.17742918,1902.1,1902.0,0.8412]
[1742149078174,0.8412,1902.0,1901.9,2.19461]
[1742149078474,2.9439,1902.0,1901.9,2.19461]
[1742149078870,2.1027,1902.0,1901.9,2.19461]
[1742149079069,2.9439,1902.0,1901.9,2.19461]
[1742149079264,2.1027,1902.0,1901.9,2.19461]
[1742149080074,2.9439,1902.0,1901.9,2.19461]
[1742149080376,2.1027,1902.0,1901.9,2.19461]
[1742149080575,2.9439,1902.0,1901.9,2.19461]
[1742149080769,2.1027,1902.0,1901.9,0.84124]
[1742149080969,2.94391,1902.0,1901.9,0.84124]
[1742149081169,2.94391,1902.0,1901.9,2.22214]
[1742149081575,2.1027,1902.0,1901.9,2.22214]
[1742149081875,1.4404,1902.0,1901.9,2.22214]
[1742149082676,0.00787918,1902.1,1902.0,0.8412]
[1742149082869,1.33967918,1902.1,1902.0,2.2239]
[1742149083175,0.00787918,1902.1,1902.0,5.4317]
[1742149085469,1.33967918,1902.1,1902.0,5.4317]
[1742149092377,0.7358138,1902.7,1902.2,2.10277]
[1742149092575,2.842,1902.6,1902.5,0.84093]
[1742149092883,0.84079,1903.0,1902.9,0.8408]
[1742149093066,1.57549,1903.0,1902.9,0.8408]
[1742149093379,1.57549,1903.0,1902.8,4.04861]
[1742149093682,0.7347,1903.0,1902.9,0.8408]
[1742149093875,0.7347,1903.0,1902.8,3.21567918]
[1742149094083,0.8408,1902.9,1902.8,4.05648918]
[1742149094382,1.4423,1902.9,1902.8,4.05648918]
[1742149096683,0.67287918,1903.1,1903.0,0.84076]
[1742149096881,0.67287918,1903.1,1903.0,4.40876]
[1742149098078,2.01187918,1903.1,1903.0,5.87566]
[1742149098472,2.01187918,1903.1,1903.0,5.0349]
[1742149098473,2.85258918,1903.1,1903.0,5.0349]
[1742149098982,2.01187918,1903.1,1903.0,3.568]
[1742149099184,2.85258918,1903.1,1903.0,3.568]
[1742149099489,2.85258918,1903.1,1903.0,4.40876]
[1742149100281,0.84076,1903.0,1902.9,2.17867]
[1742149100477,1.4259,1903.0,1902.9,5.74667]
[1742149100884,0.8408,1902.9,1902.8,0.00787918]
[1742149101084,1.563,1902.9,1902.8,0.84870918]
[1742149101282,0.7222,1902.9,1902.8,0.84870918]
[1742149101586,0.7222,1902.9,1902.8,2.27880918]
[1742149102192,2.1137,1902.9,1902.8,2.27880918]
[1742149103589,2.9545,1902.9,1902.8,1.43797918]
[1742149103886,2.9545,1902.9,1902.8,0.00787918]
[1742149104888,6.1623,1902.9,1902.8,0.00787918]
[1742149109284,6.1623,1902.9,1902.8,0.84871918]
[1742149109484,6.1623,1902.9,1902.8,0.00787918]
[1742149109685,2.9545,1902.9,1902.8,0.00787918]
[1742149113198,0.84102,1902.4,1902.3,29.15]
[1742149113389,0.84102,1902.4,1902.2,4.04888]
[1742149113390,0.84107,1902.3,1902.2,5.47288]
[1742149113697,0.84115,1902.1,1902.0,4.04896]
[1742149113993,0.84114,1902.2,1902.1,0.84113]
[1742149114387,0.84114,1902.2,1902.1,2.30153]
[1742149114686,0.84114,1902.2,1902.1,1.4604]
[1742149114990,0.84114,1902.2,1902.1,2.30155]